Cogmind - Beta 13 @@@ ROGUE MODE // 2024.04.03 @ 06:59:05 Player: Blank Result: Destroyed by G-34 Mercenary with Small Laser Performance ------------- Evolutions (0) 0 Regions Visited (2) 400 Robots Destroyed (21) 105 Value Destroyed (341) 341 Prototype IDs (0) 0 Alien Tech Used (0) 0 Bonus (0) 0 TOTAL SCORE: 846 Bonus ------- None Cogmind --------- Core Integrity 0/250 Matter 297/300 Energy 78/125 System Corruption 6% Temperature Warm (104) Movement Treading (160) Location -10/Mines Parts ------- > --- POWER (1) -------- Light Ion Engine > --- PROPULSION (2) --- Light Treads Light Treads > --- UTILITY (2) ------ Structural Scanner Improved Trap Extractor (0/6) > --- WEAPON (2) ------- Beam Cannon Light Assault Rifle > --- INVENTORY (5) ---- Airjet Machine Analyzer Signal Interpreter Improved Terrain Scanner Seismic Detector Peak State ------------ > --- POWER ------------ Light Ion Engine > --- PROPULSION ------- Light Treads Light Treads > --- UTILITY ---------- Structural Scanner Improved Trap Extractor > --- WEAPON ----------- Shock Rifle Beam Cannon > --- INVENTORY -------- Airjet Machine Analyzer Signal Interpreter Improved Terrain Scanner Seismic Detector [Rating: 13] Favorites ----------- Power Light Ion Engine Engine Light Ion Engine Propulsion Light Treads Treads Light Treads Wheel Compact Wheel Utility Structural Scanner Device Structural Scanner Storage Small Storage Unit Weapon EM Pulse Gun Energy Gun EM Pulse Gun Energy Cannon Beam Cannon Ballistic Gun Light Assault Rifle Build | -11 -10 -10 ------- Run | Yrd Mat Min Slots Evolved . | . . . Power . | . . . Propulsion . | . . . Utility . | . . . Weapon . | . . . Parts Attached 15 | 7 3 5 Power 1 | 1 . . Engine 1 | 1 . . Core . | . . . Reactor . | . . . Propulsion 4 | 2 . 2 Treads 2 | . . 2 Leg . | . . . Wheel 2 | 2 . . Hover . | . . . Flight . | . . . Utility 5 | 2 2 1 Device 4 | 1 2 1 Storage 1 | 1 . . Processor . | . . . Hackware . | . . . Protection . | . . . Artifact . | . . . Weapon 5 | 2 1 2 Energy Gun 3 | 2 . 1 Energy Cannon 1 | . 1 . Ballistic Gun 1 | . . 1 Ballistic Cannon . | . . . Launcher . | . . . Special Weapon . | . . . Impact Weapon . | . . . Slashing Weapon . | . . . Piercing Weapon . | . . . Special Melee Weapon . | . . . Unidentified Prototypes . | . . . Corrupted Parts 2 | . . 2 System Corruption 6 | . . 6 Parts Lost 2 | . . 2 Power . | . . . Propulsion . | . . . Utility . | . . . Weapon 2 | . . 2 Highest Loss Streak 1 | . . 1 To Critical Strikes . | . . . Average Slot Usage (%) 97 | . 100 93 Engine 14 | . 14 14 Treads 10 | . . 24 Wheel 17 | . 28 4 Device 27 | . 27 28 Energy Gun 16 | . 25 6 Energy Cannon 7 | . 2 14 Naked Turns . | . . . Heaviest Build 13 | 13 13 13 Greatest Support 40 | 26 26 40 Greatest Overweight (x) . | . . . Average Overweight (x) . | . . . Largest Inventory Capacity 8 | 8 8 5 Average Capacity 5 | 7 5 5 Most Carried 5 | 4 5 5 Average Carried 4 | 2 4 4 Final Capacity 8 | 8 5 5 Final Carried 5 | 4 5 5 Class Distribution -------------------- 100% | Mutant Dominant Class ---------------- Mutant | -10/Materials Mutant | -10/Mines Resources | -11 -10 -10 ----------- Run | Yrd Mat Min Matter Collected 373 | 270 30 73 Remotely . | . . . Salvage Created 533 | 137 303 93 Parts 39 | 11 19 9 Haulers Intercepted . | . . . Recyclers Shooed 1 | . . 1 Parts Field Recycled . | . . . Retrieved Matter . | . . . Parts Self-Destructed . | . . . Prevented . | . . . Kills | -11 -10 -10 ------- Run | Yrd Mat Min Combat Hostiles Destroyed 14 | . 8 6 Guns 5 | . 5 . Cannons 6 | . . 6 AOE 3 | . 3 . Classes Destroyed 6 | 2 4 . Tunneler 3 | 3 . . Recycler 1 | 1 . . Mechanic 1 | . 1 . Watcher 2 | . 2 . Swarmer 10 | . 4 6 Grunt 4 | . 4 . Best Kill Streak 5 | 4 5 3 Combat Bots Only 5 | . 5 3 Max Kills in Single Turn 2 | 1 2 1 Gunslinging 1 | . 1 . Exploded 2 | . 2 . Melee . | . . . Uniques/NPCs Destroyed . | . . . Combat | -11 -10 -10 -------- Run | Yrd Mat Min Hostile Shots Fired 70 | . 29 41 Missed 17 | . 6 11 Damage Taken 673 | 26 299 348 Core 259 | 26 167 66 Absorbed by Shields . | . . . Core Remaining (%) 89 | 89 . . Volleys Fired 47 | 4 19 24 Largest 2 | 2 2 2 Hottest 110 | 80 100 110 Shots Fired 74 | 8 38 28 Gun 50 | 8 36 6 Cannon 24 | . 2 22 Launcher . | . . . Special . | . . . Kinetic 3 | . . 3 Thermal 24 | . 2 22 Explosive . | . . . Electromagnetic 47 | 8 36 3 Robot Hit Streak 5 | 3 5 3 Robot Miss Streak 5 | 1 5 2 Penetration Max . | . . . Secondary Targets 2 | . 2 . Max Gunslinging Chain 1 | . 1 . Shots Hit Robots 39 | 5 18 16 Core Hits 24 | 4 13 7 Critical Kills . | . . . Critical Parts Destroyed . | . . . Critical Strikes . | . . . Melee Attacks . | . . . Impact . | . . . Slashing . | . . . Piercing . | . . . Sneak Attacks . | . . . Combat Hostiles . | . . . Follow-up Attacks . | . . . Damage Inflicted 789 | 117 423 249 Guns 341 | 66 238 37 Cannons 212 | . . 212 Explosions 236 | 51 185 . Melee . | . . . Ramming . | . . . Kinetic 23 | . . 23 Thermal 344 | 51 81 212 Explosive 104 | . 104 . Electromagnetic 318 | 66 238 14 Impact . | . . . Slashing . | . . . Piercing . | . . . Highest Corruption 6 | . . 6 Average Corruption 5 | . . 5 Corruption Purged . | . . . Corruption Blocked . | . . . Effects 11 | . . 11 Message Errors 2 | . . 2 Matter Fused 4 | . . 4 Energy Discharges 1 | . . 1 Data Loss (minor) 1 | . . 1 Data Loss (major) 1 | . . 1 Misfires 1 | . . 1 Weapon Failures 1 | . . 1 Overload Shots . | . . . Overflow Damage 12 | . . 12 Projectiles 12 | . . 12 Explosions . | . . . Melee . | . . . Knockbacks . | . . . Impact . | . . . Kinetic . | . . . Secondary . | . . . Self-Inflicted Damage 137 | 26 111 . Shots 2 | 1 1 . Rammed . | . . . Targets Rammed . | . . . Kicked . | . . . Crushed . | . . . Highest Temperature 200 | 30 138 200 Average Temperature 58 | 16 42 81 Received Heat Transfer 48 | . 24 24 Siege Activations . | . . . Robots Corrupted . | . . . Combat Hostiles . | . . . Parts Fried . | . . . Impact Corruptions . | . . . Robots Melted . | . . . Combat Hostiles . | . . . Parts Melted . | . . . Heat Transferred 694 | 100 150 444 Parts Sabotaged . | . . . Parts Stolen . | . . . Parts Stripped . | . . . Power Chain Reactions 3 | 1 2 . Alert | -11 -10 -10 ------- Run | Yrd Mat Min Peak Influence 379 | 20 379 267 Initial 147 | . 13 147 Average 112 | 6 97 154 Maximum Alert Level 1 | . 1 1 Low Security (%) 79 | 100 75 79 Level 1 20 | . 24 20 Level 2 . | . . . Level 3 . | . . . Level 4 . | . . . Level 5 . | . . . High Security . | . . . Max Security . | . . . Squads Dispatched 1 | . 1 . Investigation . | . . . Extermination . | . . . Reinforcement 1 | . 1 . Assault . | . . . Garrison . | . . . Intercept . | . . . Searches Triggered . | . . . Construction Impeded . | . . . Haulers Reinforced . | . . . Active Scanning Responses . | . . . Cargo Convoy Interrupts . | . . . Stealth | -11 -10 -10 --------- Run | Yrd Mat Min Distress Signals 2 | . 2 . Communications Jammed . | . . . Distress Signals . | . . . Times Spotted 25 | . 17 8 Peak Tracking Total 4 | . 4 3 Tactical Retreats 2 | . 2 . Traps | -11 -10 -10 ------- Run | Yrd Mat Min Traps Triggered 3 | . . 3 Indirectly . | . . . Trap Hack Attempts . | . . . Triggered . | . . . Disarmed . | . . . Reprogrammed . | . . . Reused . | . . . Traps Extracted . | . . . Installed . | . . . Triggered . | . . . Machines | -11 -10 -10 ---------- Run | Yrd Mat Min Machines Disabled 2 | . 2 . Max in Single Turn 2 | . 2 . Machines Repaired . | . . . Machines Dismantled . | . . . Machines Sabotaged . | . . . Overloaded Fab Kills . | . . . Hacking | -11 -10 -10 --------- Run | Yrd Mat Min Machines Accessed 4 | . 3 1 Terminals 3 | . 3 . Fabricators . | . . . Repair Stations . | . . . Recycling Units . | . . . Scanalyzers . | . . . Garrison Access . | . . . Total Hacks 6 | . 5 1 Successful 4 | . 3 1 Failed 2 | . 2 . Catastrophic 1 | . 1 . Database Lockouts . | . . . Manual 7 | . 7 . Terminals 5 | . 5 . Fabricators . | . . . Repair Stations . | . . . Recycling Units . | . . . Scanalyzers . | . . . Garrison Access . | . . . Terminal Hacks 2 | . 1 1 Open Door 1 | . . 1 Locate Traps 1 | . 1 . Fabricator Hacks . | . . . Repair Station Hacks . | . . . Recycling Unit Hacks . | . . . Scanalyzer . | . . . Garrison Access Hacks . | . . . Unauthorized Hacks 2 | . 2 . Terminals 2 | . 2 . Track 2 | . 2 . Fabricators . | . . . Repair Stations . | . . . Recycling Units . | . . . Scanalyzers . | . . . Garrison Access . | . . . Data Cores Recovered . | . . . Used . | . . . Hacking Detections 2 | . 2 . Full Trace Events 1 | . 1 . Feedback Events . | . . . Feedback Blocked . | . . . Robot Schematics Acquired . | . . . Robots Built . | . . . Authchips . | . . . Time . | . . . Total Robot Build Rating . | . . . Part Schematics Acquired . | . . . Parts Built . | . . . Authchips . | . . . Time . | . . . Total Part Build Rating . | . . . Parts Repaired . | . . . Time . | . . . Parts Recycled . | . . . Recycled Matter . | . . . Retrieved Matter . | . . . Retrieved Components . | . . . Parts Scanalyzed . | . . . Part Schematics Acquired . | . . . Parts Damaged . | . . . Bothacking | -11 -10 -10 ------------ Run | Yrd Mat Min Used RIF Installer . | . . . Robots Hacked . | . . . Non-combat . | . . . Combat . | . . . Robot Hacks Applied . | . . . Relay Couplers Released . | . . . Fabnet Peak Effective % . | . . . Robots Rewired . | . . . Allies Hacked . | . . . Hacks Repelled . | . . . Allies | -11 -10 -10 -------- Run | Yrd Mat Min Total Allies . | . . . Largest Group . | . . . Highest-Rated Group . | . . . Highest-Rated Ally . | . . . Total Orders . | . . . Ally Attacks . | . . . Total Damage . | . . . Kills . | . . . Allies Corrupted . | . . . Allies Melted . | . . . Intel | -11 -10 -10 ------- Run | Yrd Mat Min Robot Analysis Total . | . . . Derelict Logs Recovered 1 | . . 1 Drone Launches . | . . . Drone Recoveries . | . . . Exploration | -11 -10 -10 ------------- Run | Yrd Mat Min Turns Passed 1196 | 110 598 488 Spaces Moved 946 | 97 553 296 Core 11 | 11 . . Treads 228 | . . 228 Legs . | . . . Wheels 707 | 86 553 68 Hover . | . . . Flight . | . . . Fastest Speed 50 | 50 90 90 Average Speed 106 | 85 90 143 Slowest Speed 160 | 100 90 160 Overloaded Moves . | . . . Propulsion Burnouts . | . . . Robots Hopped . | . . . Cave-ins Triggered . | . . . Exploration Rate (%) 33 | 5 59 36 Regions Visited 2 Branch Regions 1 Pre-discovered Areas 1 | . . 1 Known Exits Taken . | . . . Unknown Exits Taken 2 | 1 1 . Scrap Searched . | . . . Spaces Dug . | . . . Terrain Destroyed 39 | . 39 . Melee . | . . . Projectile . | . . . AOE 39 | . 39 . Terrain Rammed . | . . . Walls Destroyed . | . . . Machines Disabled . | . . . Actions | -11 -10 -10 --------- Run | Yrd Mat Min Total 1056 | 111 616 329 Wait 34 | . 34 . Move 944 | 96 552 296 Hop . | . . . Pick Up 10 | 4 4 2 Fast Attach 9 | 7 . 2 Attach 1 | . 1 . Detach 1 | . 1 . Swap 5 | . 2 3 Drop 5 | . 3 2 Fire 47 | 4 19 24 Melee . | . . . Ram . | . . . Kick . | . . . Crush . | . . . Escape Stasis . | . . . Rewire . | . . . Trap . | . . . Miscellaneous . | . . . Route ------- -11/Scrapyard -10/Materials (discovered 3 exits: [*Mat] / *Min x2) -10/Mines (discovered 2 exits: [*Mat x2]) History --------- Turn | Location | Event 6 | -11/Scrapyard | Discovered new exit (range 16) 111 | -11/Scrapyard | Entered Materials 293 | -10/Materials | Discovered new exit (range 6) 330 | -10/Materials | Build established: Mutant 347 | -10/Materials | Discovered new exit (range 15) 561 | -10/Materials | Core integrity fell below 50% 579 | -10/Materials | Discovered new exit (range 16) 709 | -10/Materials | Entered Mines 712 | -10/Mines | Learned location of Zion (-7) 762 | -10/Mines | Met a Derelict who couldn't figure out how to use a Trap Extractor 892 | -10/Mines | Discovered new exit (range 3) 985 | -10/Mines | Discovered new exit (range 13) 1002 | -10/Mines | Core integrity fell below 20% 1197 | -10/Mines | Destroyed by G-34 Mercenary with Small Laser Last Messages --------------- Shock Rifle destroyed. S-10 Pest destroyed. Acquired 32 matter. S-10 Pest destroyed. K-01 Serf collects debris. Acquired 12 matter. EXIT=FOUND K-01 Serf collects debris. S-10 Pest destroyed. System corrupted: Beam Cannon failed to cycle. S-10 Pest destroyed. Acquired 19 matter. H%/ LY7F26H Y1CLHAJC UGBUDI4GU/44B98 79BKYRP/BC System corrupted: FCS attempts to trigger Beam Cannon. System corrupted: Beam Cannon misfires. Acquired Lgt. Assault Rifle. Acquired 10 matter. System corrupted: Energy discharge (-41). Map ----- +----------------------------------------------------+ | ?# """ #?????# ##?????????????????????? | | ?# """ #?????# ##?????????????????????? | | ?# """ #?????# #??????????????????????? | | ?# #?????# #??????????????????????? | | ?########?????# #??????????????????????? | | ??????????????# #??????????????????????? | | ??????????????# #??????????????????????? | | ???????######## ##?????????????????????? | | ??????######### ##?????????????????????? | | ??????# =## #?????????????????????? | | ??????# ###%## ##????????????????????? | | ??????# ###=## #????????????????????? | | ??????# ### ### #????????????????????? | | ??????# ### #### ##????????????????????? | | ??????# ### #### ##?????????????????????? | | ??????# ### #### ##?????????????????????? | | ??????# ### #### ######?????????????????? | | ??????# ###%#### #?????????????????? | | ??????# ### #### ### #???????????????? | | ??????# ### #### ### ????? ????????? | | ??????# ### #### ### < ????????? | | ???#### ### ????????? | | ??## ##### ### ""??????????? | | ??## ##### ####????? ""??????????? | | ??## """ ##?????????????????????? | | ??## """ #####@##?????????????????????? | | ??## """ #####g##?????????????????????? | | ??## #??##g##?????????????????????? | | ??## """ #??## ##?????????????????????? | | ??## """ #??## ##?????????????????????? | | ???# """ #?? ?????????????????????? | | ???# #??? ??????????????????????? | | ???# """ #?? ?????????????????????? | | ???# """ #?? """ ?????????????????????? | | ???# """ #? """ ????????????????????? | | ???# ## """ ##??????????????????? | | ???########## ##??????????????????? | | ???????????###########??????????????????? | | ???????????###########??????????????????? | | ????????????????????????????????????????? | | | | | | | | | | | | | | | | | | | | | +----------------------------------------------------+ Best States ------------- Heat Dissipation 25 Energy Generation 10 Energy Capacity 125 Matter Stores 300 Matter Capacity 300 Sight Range 16 Terrain Scan Range 16 Terrain Scan Density 10 Evasion (%) 50 Recoil Reduction 2 Trap Extractor Capacity 6 Item Schematics ----------------- None Robot Schematics ------------------ None Fabricated ------------ Nothing Alien Tech Used ----------------- None Achievements -------------- True Hacker Challenges ------------ None Game ------ Seed GodRegenerativeTriangulator Manual? 0 Play Time 00:16:56 Cumulative 4.3 hours Start 2024.04.03 @ 06:43:33 End 2024.04.03 @ 06:59:05 Sessions 1 Manual Loads 0 Difficulty Rogue Special Mode None Game No. 6 Rogue 6 Adventurer 0 Explorer 0 Win Type - Total 0 Types 0/0/0/0/0/0/0/0/0 Lore% 6 Gallery% 9 Achievement% 10 Wizard Run 0 Options --------- Layout 1 ASCII 0 Keyboard 1 Movement Arrows Keybinds 0 Fullscreen 1 Font 24/Smallcaps Map View 50x35 Zoom Use 0% Tactical HUD 0 Map Filters NONE Filters NONE Steam 1 RUN: 7c2062d1-25cc-4424-b68e-3d7547614eba